bitfinex/quotes_SOLUSD_20240909
["timestamp","ask_amount","ask_price","bid_price","bid_amount"]
[1725898881866,45.0,131.16,131.13,1.52460568]
[1725898882042,45.0,131.16,131.14,0.12549]
[1725898882365,20.0,131.17,131.14,0.12549]
[1725898882539,20.0,131.21,131.14,0.12549]
[1725898882734,8.76845769,131.22,131.16,0.12549]
[1725898883043,8.76845769,131.22,131.16,1.52390262]
[1725898883244,8.76845769,131.22,131.14,0.12549]
[1725898883676,38.98676837,131.29,131.17,6.3053]
[1725898883868,8.76845769,131.24,131.17,6.3053]
[1725898884942,8.76845769,131.24,131.18,1.52391846]
[1725898885147,8.76845769,131.24,131.17,6.3053]
[1725898885574,20.0,131.23,131.18,1.52399754]
[1725898886370,45.0,131.22,131.14,6.0705]
[1725898886581,20.0,131.21,131.14,6.0705]
[1725898886760,45.0,131.2,131.15,1.52446345]
[1725898887066,20.0,131.19,131.14,6.0705]
[1725898887371,45.0,131.18,131.15,1.52437672]
[1725898887566,20.0,131.17,131.15,1.52437672]
[1725898887760,45.0,131.16,131.15,1.52437672]
[1725898887960,65.0,131.16,131.14,6.0705]
[1725898888162,45.0,131.16,131.14,6.0705]
[1725898888349,45.0,131.16,131.15,1.52454299]
[1725898888685,65.0,131.16,131.14,7.59504356]
[1725898888971,45.0,131.16,131.14,7.59504356]
[1725898889349,45.0,131.16,131.14,6.0705]
[1725898889551,45.0,131.16,131.14,7.59504488]
[1725898889762,45.0,131.16,131.14,6.0705]
[1725898890077,6.47341196,131.23,131.15,0.12549]
[1725898890274,7.31462476,131.29,131.19,0.12549]
[1725898890681,8.54268086,131.28,131.18,6.463]
[1725898891195,8.54268086,131.28,131.19,0.12549]
[1725898891476,8.54268086,131.28,131.18,6.463]
[1725898891477,38.18103932,131.27,131.18,6.463]
[1725898891773,46.72372018,131.27,131.18,6.463]
[1725898892181,8.54268086,131.26,131.18,6.463]
[1725898892364,20.0,131.25,131.18,6.463]
[1725898892573,45.0,131.24,131.18,6.463]
[1725898892774,20.0,131.23,131.18,6.463]
[1725898892975,45.0,131.22,131.18,6.463]
[1725898893175,20.0,131.21,131.18,6.463]
[1725898893403,45.0,131.2,131.18,6.463]
[1725898893595,20.0,131.19,131.18,6.463]
[1725898894088,65.0,131.19,131.16,16.1783]
[1725898894284,20.0,131.19,131.08,15.2705]
[1725898894459,20.0,131.21,131.09,1.52443812]
[1725898894661,26.47341196,131.21,131.09,1.52443812]
[1725898894862,26.47341196,131.21,131.08,15.2705]
[1725898894863,6.97341196,131.2,131.08,15.2705]
[1725898895158,20.0,131.19,131.08,15.2705]
[1725898895483,15.01609282,131.18,131.08,15.2705]
[1725898895684,20.0,131.17,131.08,15.2705]
[1725898895988,26.47341196,131.17,131.08,15.2705]
[1725898896241,51.47341196,131.16,131.08,15.2705]
[1725898896397,28.7695336,131.15,131.08,15.2705]
[1725898896562,45.0,131.14,131.08,15.2705]
[1725898896764,20.0,131.13,131.08,15.2705]
[1725898896982,45.0,131.12,131.09,6.6054]
[1725898897180,20.0,131.11,131.09,6.6054]
[1725898897384,45.0,131.1,131.09,6.6054]
[1725898897587,65.0,131.1,131.09,6.6054]
[1725898898090,20.0,131.11,131.09,6.6054]
[1725898898388,16.0463,131.23,131.09,6.6054]
[1725898898564,24.28562642,131.22,131.09,6.6054]
[1725898898880,23.78562642,131.22,131.1,1.52452348]
[1725898899385,7.6218,131.21,131.11,1.52480364]
[1725898899563,23.78562642,131.2,131.09,6.6054]
[1725898899764,23.78562642,131.2,131.1,1.5246772]
[1725898899992,45.0,131.19,131.11,1.52470961]
[1725898900196,35.24294556,131.18,131.09,6.6054]
[1725898900500,45.0,131.17,131.1,1.52485835]
[1725898900698,45.0,131.17,131.11,1.52477515]
[1725898900891,20.0,131.16,131.09,6.6054]
[1725898901204,45.0,131.15,131.1,1.52479037]
[1725898901377,45.0,131.15,131.11,1.52483326]
[1725898901583,20.0,131.14,131.09,6.6054]
[1725898901992,15.01609282,131.18,131.1,0.12549]
[1725898902174,8.54268086,131.18,131.1,0.12549]
[1725898902502,8.54268086,131.18,131.1,1.64983938]
[1725898902797,8.7695336,131.2,131.08,15.2705]
[1725898902798,8.7695336,131.2,131.14,0.12549]
[1725898903004,8.54268086,131.22,131.14,1.6494837]
[1725898903176,8.54268086,131.22,131.14,0.12549]
[1725898903177,17.31221446,131.22,131.14,0.12549]
[1725898903496,17.31221446,131.21,131.14,0.12549]
[1725898904272,17.31221446,131.21,131.13,21.8911]
[1725898904467,20.0,131.2,131.13,21.8911]
[1725898905197,37.31221446,131.2,131.14,1.52440193]
[1725898905497,45.0,131.19,131.15,1.52438366]
[1725898905700,20.0,131.18,131.13,21.8911]
[1725898905882,45.0,131.17,131.13,21.8911]
[1725898906076,20.0,131.16,131.13,21.8911]
[1725898906274,20.0,131.18,131.13,21.8911]
[1725898906899,8.54268086,131.18,131.13,21.8911]
[1725898907209,20.0,131.17,131.13,21.8911]
[1725898907503,45.0,131.16,131.13,21.8911]
[1725898908009,20.0,131.15,131.1,6.625]
[1725898908377,45.0,131.14,131.1,6.625]
[1725898908586,20.0,131.13,131.11,1.52489261]
[1725898908798,45.0,131.12,131.1,6.625]
[1725898910201,15.01609282,131.18,131.12,0.12549]
[1725898910400,20.0,131.17,131.11,0.12549]
[1725898910785,20.0,131.17,131.11,1.65010868]
[1725898911005,15.01609282,131.18,131.11,1.65010868]
[1725898911608,8.7695336,131.2,131.11,1.65010868]
[1725898912878,17.31221446,131.2,131.11,1.65010868]
[1725898913700,8.54268086,131.2,131.13,0.12549]
[1725898914212,8.54268086,131.2,131.13,1.64941729]
[1725898914584,6.47341196,131.22,131.13,1.64941729]
[1725898915006,20.0,131.21,131.13,1.64941729]
[1725898915696,45.0,131.2,131.12,23.67488752]
[1725898915908,20.0,131.19,131.12,22.1509]
[1725898916218,45.0,131.18,131.12,22.1509]
[1725898916424,20.0,131.19,131.12,23.67519661]
[1725898916727,20.0,131.2,131.13,50.0]
[1725898917019,20.0,131.2,131.13,0.12549]
[1725898917692,20.0,131.2,131.15,0.12549]
[1725898917907,20.0,131.2,131.13,1.64957933]
[1725898918316,45.0,131.19,131.13,0.12549]
[1725898918499,45.0,131.19,131.12,22.1509]
[1725898918813,20.0,131.18,131.12,22.1509]
[1725898919014,45.0,131.17,131.12,22.1509]
[1725898919619,20.0,131.16,131.12,22.1509]
[1725898920031,45.0,131.15,131.13,1.52466299]
[1725898920204,45.0,131.15,131.12,22.1509]
[1725898920395,20.0,131.14,131.12,22.1509]
[1725898920590,45.0,131.13,131.08,21.4541]
[1725898921319,38.13830315,131.28,131.13,6.0369]
[1725898921513,38.13830315,131.28,131.14,110.22858013]
[1725898921722,15.24294556,131.27,131.15,1.52343486]
[1725898922028,38.67895979,131.26,131.14,50.0]
[1725898922197,14.54664837,131.26,131.17,0.12549]
[1725898922402,16.84277001,131.25,131.17,0.12549]
[1725898923495,23.31618197,131.25,131.17,0.12549]
[1725898923695,20.0,131.24,131.16,0.12549]
[1725898923909,8.7695336,131.23,131.16,0.12549]
[1725898924110,20.0,131.22,131.16,0.12549]
[1725898924432,20.0,131.22,131.15,0.12549]
[1725898924727,20.0,131.22,131.14,0.12549]
[1725898925498,8.7695336,131.23,131.15,23.0181]
[1725898925715,6.47341196,131.24,131.2,0.12549]
[1725898925897,8.7695336,131.26,131.2,0.12549]
[1725898926304,16.84277001,131.26,131.2,0.12549]
[1725898926502,23.31618197,131.26,131.19,6.5727]
[1725898926698,6.47341196,131.25,131.2,0.12549]
[1725898926898,0.8412128,131.29,131.2,0.12549]
[1725898926899,15.24294556,131.28,131.2,0.12549]
[1725898927119,8.07323641,131.27,131.2,0.12549]
[1725898927322,8.7695336,131.26,131.2,0.12549]
[1725898927534,15.24294556,131.26,131.2,0.12549]
[1725898928034,23.31618197,131.26,131.2,0.12549]
[1725898928236,65.0,131.25,131.2,0.12549]
[1725898928405,20.0,131.25,131.2,0.12549]
[1725898928735,23.31618197,131.26,131.2,0.12549]
[1725898928736,15.24294556,131.26,131.2,0.12549]
[1725898928928,6.47341196,131.26,131.2,0.12549]
[1725898929405,15.24294556,131.26,131.2,0.12549]
[1725898930117,20.0,131.25,131.2,0.12549]
[1725898930510,15.24294556,131.26,131.2,0.12549]
[1725898930718,6.47341196,131.26,131.22,0.12549]
[1725898931726,6.47341196,131.26,131.21,0.12549]
[1725898931908,0.8412128,131.29,131.23,0.12549]
[1725898932112,0.8412128,131.29,131.19,127.00101264]
[1725898932113,6.47341196,131.28,131.19,6.5727]
[1725898932309,23.31618197,131.28,131.16,6.1408]
[1725898933210,65.0,131.27,131.16,6.1408]
[1725898933415,16.16442615,131.26,131.17,1.52372121]
[1725898933615,65.0,131.25,131.18,1.52357214]
[1725898933817,81.16442615,131.25,131.18,1.52357214]
[1725898934102,81.16442615,131.25,131.16,6.1408]
[1725898934103,16.16442615,131.24,131.16,6.1408]
[1725898934341,9.69101419,131.24,131.18,50.0]
[1725898934629,9.69101419,131.24,131.19,0.72689103]
[1725898934851,9.69101419,131.24,131.2,0.12549]
[1725898935005,9.69101419,131.24,131.19,0.12549]
[1725898935208,9.69101419,131.24,131.17,0.12549]
[1725898935706,9.69101419,131.24,131.18,0.98508933]
[1725898935938,9.69101419,131.24,131.19,0.12549]
[1725898936250,9.69101419,131.24,131.21,0.12549]
[1725898936722,9.69101419,131.24,131.17,1.5233503]
[1725898936933,9.69101419,131.24,131.16,7.66442676]
[1725898937518,20.0,131.23,131.16,7.66442676]
[1725898937729,54.69101419,131.22,131.16,6.1408]
[1725898938021,20.0,131.21,131.16,6.1408]
[1725898938225,45.0,131.2,131.17,1.52396253]
[1725898938429,45.0,131.2,131.16,6.1408]
[1725898938643,20.0,131.19,131.16,6.1408]
[1725898939140,45.0,131.18,131.17,0.12549]
[1725898939736,65.0,131.18,131.16,6.1408]
[1725898939941,45.0,131.18,131.16,6.1408]
[1725898940438,45.0,131.18,131.17,0.99000874]
[1725898940646,65.0,131.18,131.17,0.99000874]
[1725898940936,20.0,131.18,131.16,6.1408]
[1725898941289,20.0,131.21,131.16,6.1408]
[1725898941414,20.0,131.21,131.17,0.12549]
[1725898941614,9.69101419,131.21,131.17,0.12549]
[1725898942037,20.0,131.2,131.17,0.12549]
[1725898942337,45.0,131.19,131.17,0.12549]
[1725898942719,9.69101419,131.2,131.17,50.12549]
[1725898942915,9.69101419,131.2,131.17,0.12549]
[1725898943120,9.69101419,131.2,131.17,50.12549]
[1725898944923,9.69101419,131.2,131.17,0.12549]
[1725898945541,45.0,131.19,131.17,50.55461983]
[1725898945760,9.15259752,131.25,131.17,50.7607794]
[1725898945967,20.0,131.24,131.19,0.12549]
[1725898946130,29.15259752,131.24,131.19,50.76107679]
[1725898946656,9.15259752,131.23,131.19,0.63558679]
[1725898947124,9.15259752,131.23,131.18,50.0]
[1725898947438,9.15259752,131.23,131.16,6.1408]
[1725898947439,9.15259752,131.23,131.16,56.11067]
[1725898948037,9.15259752,131.23,131.17,0.12549]
[1725898948358,23.8177653,131.23,131.16,6.11067]
[1725898948648,70.89563418,131.22,131.16,6.11067]
[1725898948827,9.15259752,131.21,131.16,6.11067]
[1725898949030,45.0,131.2,131.16,6.11067]
[1725898949231,65.0,131.2,131.16,6.11067]
[1725898949439,45.0,131.2,131.16,6.11067]
[1725898949646,45.0,131.21,131.16,6.11067]
[1725898950279,25.89563418,131.22,131.18,0.12549]
[1725898950550,20.0,131.22,131.17,50.12549]
[1725898950752,20.0,131.22,131.19,0.12549]
[1725898950984,9.15259752,131.23,131.19,0.12549]
[1725898951481,9.15259752,131.23,131.18,50.12549]
[1725898952564,9.15259752,131.23,131.17,50.12549]
[1725898953380,45.0,131.22,131.2,0.12549]
[1725898953563,5.89563418,131.25,131.2,0.12549]
[1725898953877,15.0482317,131.25,131.2,0.12549]
[1725898954261,9.15259752,131.25,131.2,0.12549]
[1725898955780,9.15259752,131.25,131.18,50.0]
[1725898956475,45.0,131.24,131.18,50.0]
[1725898956851,45.0,131.24,131.19,0.12549]
[1725898958856,9.15259752,131.25,131.21,0.12549]
[1725898959052,5.89563418,131.28,131.23,0.12549]
[1725898959269,14.53971504,131.28,131.23,0.12549]
[1725898959864,8.64408086,131.27,131.23,0.12549]
[1725898960262,8.64408086,131.27,131.2,0.47975638]
[1725898960466,8.64408086,131.27,131.21,0.47971981]
[1725898960769,65.0,131.26,131.21,0.47971981]
[1725898961178,8.64408086,131.27,131.2,50.47975637]
[1725898961361,8.64408086,131.27,131.21,0.47961011]
[1725898961678,8.64408086,131.27,131.23,0.12549]
[1725898962682,8.64408086,131.27,131.23,6.32489]
[1725898964979,45.0,131.26,131.23,6.32489]
[1725898965568,45.0,131.26,131.2,56.4158]
[1725898966981,45.0,131.26,131.21,0.12549]
[1725898967285,20.0,131.25,131.21,0.12549]
[1725898967663,45.0,131.24,131.21,0.12549]
[1725898968067,45.0,131.24,131.16,50.0]
[1725898968263,45.0,131.24,131.18,50.0]
[1725898968463,6.75363418,131.24,131.18,50.0]
[1725898968880,6.75363418,131.24,131.2,50.0]
[1725898969280,6.75363418,131.24,131.16,96.91574042]
[1725898969899,65.0,131.23,131.18,96.91574042]
[1725898970079,45.0,131.23,131.18,96.91574042]
[1725898971377,45.0,131.23,131.19,0.12549]
[1725898971583,45.0,131.23,131.21,0.12549]
[1725898973887,6.75363418,131.24,131.21,0.12549]
[1725898974477,45.0,131.23,131.21,0.12549]
[1725898975168,6.75363418,131.24,131.21,0.12549]
[1725898975787,45.0,131.23,131.21,0.12549]
[1725898976770,6.75363418,131.24,131.21,0.12549]
[1725898978103,6.75363418,131.24,131.23,0.12549]
[1725898978472,8.64408086,131.27,131.23,0.12549]
[1725898978473,15.39771504,131.27,131.23,0.12549]
[1725898979299,15.39771504,131.27,131.21,0.12549]
[1725898979483,15.39771504,131.27,131.23,0.12549]
[1725898979692,45.0,131.26,131.23,0.12549]
[1725898980292,45.0,131.26,131.18,50.0]
[1725898980293,60.39771504,131.26,131.18,50.0]
[1725898980482,15.39771504,131.25,131.18,51.52342215]
[1725898980677,44.8451,131.24,131.18,51.52342215]
[1725898980896,44.8451,131.24,131.18,50.0]
[1725898981488,51.59873418,131.24,131.18,50.0]
[1725898981694,60.24281504,131.24,131.18,50.0]
[1725898981888,60.24281504,131.24,131.17,7.96885388]
[1725898982090,20.0,131.23,131.17,7.96885388]
[1725898982292,26.75363418,131.23,131.17,7.96885388]
[1725898982777,45.0,131.22,131.17,7.96885388]
[1725898982976,51.75363418,131.22,131.16,50.0]
[1725898983581,51.75363418,131.22,131.16,96.91574042]
[1725898983886,6.75363418,131.22,131.19,50.0]
[1725898984102,6.75363418,131.22,131.2,1.52207004]
[1725898984408,6.75363418,131.26,131.21,1.52337884]
[1725898984714,6.75363418,131.26,131.22,0.12549]
[1725898984892,6.75363418,131.26,131.22,1.64883011]
[1725898985706,20.0,131.25,131.22,1.64883011]
[1725898985906,26.75363418,131.25,131.22,1.64883011]
[1725898986095,35.39771504,131.25,131.17,51.52347764]
[1725898986289,6.75363418,131.24,131.17,50.0]
[1725898986603,20.0,131.23,131.17,50.0]
[1725898986909,45.0,131.22,131.17,50.0]
[1725898987404,45.0,131.22,131.16,7.96915051]
[1725898987593,51.75363418,131.22,131.16,7.96915051]
[1725898990012,15.8785,131.21,131.16,7.96915051]
[1725898990209,45.0,131.2,131.14,50.0]
[1725898990585,45.0,131.2,131.16,50.0]
[1725898990783,6.75363418,131.22,131.16,50.0]
[1725898991391,6.75363418,131.22,131.17,0.12549]
[1725898992193,45.0,131.21,131.17,0.12549]
[1725898992394,45.0,131.21,131.14,50.0]
[1725898992599,45.0,131.21,131.16,50.0]
[1725898992794,45.0,131.21,131.14,50.0]
[1725898992995,45.0,131.21,131.13,7.97173814]
[1725898993214,45.0,131.21,131.12,50.0]
[1725898993215,20.0,131.2,131.12,50.0]
[1725898993512,45.0,131.19,131.12,57.96860227]
[1725898993683,20.0,131.18,131.12,57.96860227]
[1725898993891,45.0,131.17,131.12,57.96860227]
[1725898995292,45.0,131.17,131.12,7.96860227]
[1725898996339,60.2203,131.17,131.1,50.0]
[1725898996609,60.2203,131.17,131.08,96.91574042]
[1725898996988,60.2203,131.17,131.1,7.96921201]
[1725898996989,15.2203,131.17,131.1,7.96921201]
[1725898997192,15.2203,131.17,131.11,50.0]
[1725898997714,22.6816,131.2,131.11,50.0]
[1725898997924,13.41693418,131.2,131.13,50.0]
[1725898998096,6.75363418,131.2,131.16,0.12549]
[1725898999809,45.0,131.19,131.16,0.12549]
[1725899000499,6.75363418,131.2,131.16,0.12549]
[1725899001831,16.38065948,131.2,131.16,0.12549]
[1725899002126,45.0,131.19,131.16,0.12549]
[1725899002501,6.75363418,131.2,131.16,0.12549]
[1725899002726,29.33363418,131.23,131.16,0.12549]
[1725899003028,65.0,131.22,131.16,0.12549]
[1725899003201,20.0,131.22,131.16,0.12549]
[1725899004825,45.0,131.21,131.16,0.12549]
[1725899005712,45.0,131.22,131.18,0.12549]
[1725899006922,45.0,131.22,131.17,50.0]
[1725899008002,6.75363418,131.23,131.2,0.12549]
[1725899008339,15.8708,131.26,131.2,0.12549]
[1725899009726,6.37851196,131.27,131.24,0.12549]
[1725899009904,7.0182128,131.29,131.24,0.12549]
[1725899011232,20.0,131.28,131.24,0.12549]
[1725899012519,45.0,131.27,131.24,0.12549]
[1725899012748,45.0,131.27,131.2,6.0406]
[1725899013042,20.0,131.26,131.19,50.0]
[1725899013224,54.62689355,131.25,131.19,50.0]
[1725899013422,54.62689355,131.25,131.2,1.52248826]
[1725899013734,20.0,131.24,131.21,1.52237228]
[1725899013927,45.0,131.23,131.21,1.52237228]
[1725899014239,29.62689355,131.24,131.21,1.52237228]
[1725899014439,29.62689355,131.24,131.2,0.12549]
[1725899014822,9.62689355,131.23,131.17,50.0]
[1725899015022,54.62689355,131.23,131.18,1.52290307]
[1725899015644,9.62689355,131.23,131.18,1.52290307]
[1725899016121,9.62689355,131.23,131.17,50.0]
[1725899016321,9.62689355,131.23,131.18,1.52243888]
[1725899016931,9.62689355,131.23,131.19,0.12549]
[1725899017224,9.62689355,131.23,131.21,0.12549]
[1725899017545,9.62689355,131.23,131.19,1.64787823]
[1725899017733,9.62689355,131.23,131.18,0.12549]
[1725899018045,45.0,131.22,131.18,0.12549]
[1725899018543,9.62689355,131.22,131.14,57.95725839]
[1725899018747,74.62689355,131.21,131.14,57.95725839]
[1725899020221,74.62689355,131.21,131.14,7.95725839]
[1725899020416,74.62689355,131.21,131.15,0.12549]
[1725899020647,74.62689355,131.21,131.14,7.95725839]
[1725899023341,80.73059995,131.21,131.1,112.48944042]
[1725899023870,80.73059995,131.21,131.12,0.12549]
[1725899024732,16.5831,131.2,131.11,7.96107139]
[1725899024933,74.62689355,131.19,131.11,7.96107139]
[1725899025153,80.73059995,131.19,131.11,7.96107139]
[1725899025447,6.1037064,131.18,131.11,7.96107139]
[1725899025638,74.62689355,131.17,131.11,7.96107139]
[1725899026347,6.5001,131.16,131.11,7.96107139]
[1725899026545,74.62689355,131.15,131.11,7.96107139]
[1725899027546,74.62689355,131.15,131.12,0.12549]
[1725899027752,15.5921,131.14,131.11,7.96107139]
[1725899027937,45.0,131.13,131.11,7.96107139]
[1725899028456,9.62689355,131.12,131.06,50.0]
[1725899028753,9.62689355,131.12,131.06,57.91807347]
[1725899028932,45.0,131.11,131.06,57.91807347]
[1725899029131,9.62689355,131.12,131.06,57.91807347]
[1725899029555,15.5921,131.14,131.06,57.91807347]
[1725899029741,20.0,131.13,131.08,50.0]
[1725899029941,20.0,131.13,131.06,7.91807347]
[1725899030338,25.21899355,131.14,131.07,51.525024]
[1725899030540,25.21899355,131.14,131.07,50.0]
[1725899030944,25.21899355,131.14,131.06,7.91807347]
[1725899031147,9.62689355,131.13,131.06,7.91807347]
[1725899031670,9.62689355,131.13,131.07,0.12549]
[1725899031870,45.0,131.12,131.07,0.12549]
[1725899032332,45.0,131.12,131.06,7.91807347]
[1725899032536,54.62689355,131.12,131.06,7.91807347]
[1725899033757,54.62689355,131.12,131.07,1.52482934]
[1725899033956,54.62689355,131.12,131.06,7.91807347]
[1725899034340,54.62689355,131.12,131.07,0.12549]
[1725899035369,9.62689355,131.11,131.07,0.12549]
[1725899035567,45.0,131.1,131.07,0.12549]
[1725899036439,9.62689355,131.11,131.06,0.12549]
[1725899036664,9.62689355,131.12,131.06,0.12549]
[1725899036966,45.0,131.11,131.05,0.12549]
[1725899037561,45.0,131.11,131.05,50.12549]
[1725899037749,45.0,131.11,131.05,0.12549]
[1725899037941,9.62689355,131.12,131.05,50.12549]
[1725899039562,45.0,131.11,131.05,50.12549]
[1725899039767,9.62689355,131.12,131.05,0.12549]
[1725899039955,29.62689355,131.11,131.04,7.92710857]
[1725899040474,9.62689355,131.1,131.04,7.92710857]
[1725899040654,20.0,131.09,131.04,7.92710857]
[1725899041047,29.62689355,131.09,131.04,7.92710857]
[1725899041245,45.0,131.08,131.04,7.92710857]
[1725899041743,45.0,131.08,130.99,56.2926]
[1725899041744,15.3752,131.07,130.99,56.2926]
[1725899042055,45.0,131.06,130.99,64.23326486]
[1725899042380,54.62689355,131.06,130.99,57.94066486]
[1725899042554,9.62689355,131.06,131.01,50.0]
[1725899042863,20.0,131.09,131.01,50.0]
[1725899043063,45.0,131.08,131.01,50.0]
[1725899043266,54.62689355,131.08,130.99,57.94066486]
[1725899043664,20.0,131.07,130.99,7.94066486]
[1725899043845,54.62689355,131.06,130.99,7.94066486]
[1725899045439,15.355,131.05,130.99,7.94066486]
[1725899045641,54.62689355,131.04,130.99,7.94066486]
[1725899046069,54.62689355,131.04,130.95,56.59]
[1725899046244,6.359,131.03,130.95,50.0]
[1725899046570,6.359,131.03,130.95,57.95133035]
[1725899046571,54.62689355,131.02,130.95,57.95133035]
[1725899047069,54.62689355,131.02,130.95,7.95133035]
[1725899047581,54.62689355,131.02,130.92,50.0]
[1725899047863,54.62689355,131.02,130.93,7.95321952]
[1725899048077,54.62689355,131.02,130.94,50.0]
[1725899048368,6.359,131.03,130.93,7.95321952]
[1725899048369,6.359,131.03,130.97,0.12549]
[1725899048747,45.0,131.02,130.97,0.12549]
[1725899049277,6.359,131.03,130.97,0.12549]
[1725899049481,45.0,131.02,130.97,0.12549]
[1725899050057,9.62689355,131.01,130.97,0.12549]
[1725899050475,45.0,131.02,130.97,0.12549]
[1725899050843,24.98189355,131.05,130.99,0.12549]
[1725899050844,15.355,131.05,130.99,0.12549]
[1725899051446,9.62689355,131.04,130.99,0.12549]
[1725899052166,45.0,131.03,130.99,0.12549]
[1725899052449,9.62689355,131.04,130.99,0.12549]
[1725899053576,45.0,131.03,130.99,0.12549]
[1725899055274,45.0,131.03,130.94,50.0]
[1725899055477,9.62689355,131.02,130.94,50.0]
[1725899055776,51.3188,131.01,130.94,50.0]
[1725899055984,60.94569355,131.01,130.94,50.0]
[1725899056765,51.3188,131.01,130.94,50.0]
[1725899057151,51.3188,131.01,130.95,0.12549]
[1725899057358,60.94569355,131.01,130.95,0.12549]
[1725899057971,6.1037064,131.04,130.98,0.12549]
[1725899058177,21.6738,131.05,130.99,50.0]
[1725899058477,21.6738,131.05,130.98,0.12549]
[1725899058673,9.62689355,131.04,130.98,0.12549]
[1725899059281,9.62689355,131.04,130.95,50.0]
[1725899059460,45.0,131.03,130.95,50.0]
[1725899059960,9.62689355,131.02,130.95,50.0]
[1725899060156,45.0,131.01,130.95,50.0]
[1725899060659,45.0,131.01,130.94,7.95664475]
[1725899061058,27.7775064,131.05,130.95,50.0]
[1725899061264,21.6738,131.05,130.99,50.0]
[1725899061484,15.355,131.05,131.01,50.0]
[1725899061652,15.355,131.05,131.02,0.12549]
[1725899061856,6.102,131.08,131.02,0.12549]
[1725899063263,15.72889355,131.08,131.02,0.12549]
[1725899064383,45.0,131.07,131.02,0.12549]
[1725899064688,6.102,131.08,131.02,0.12549]
[1725899064859,15.0071,131.09,131.04,0.12549]
[1725899065062,15.0071,131.09,131.04,1.65042321]
[1725899065576,15.0071,131.09,131.04,0.12549]
[1725899066486,22.3106,131.12,131.06,0.12549]
[1725899066700,29.62689355,131.11,131.04,0.12549]
[1725899067786,45.0,131.1,131.04,0.12549]
[1725899067976,54.62689355,131.1,131.01,50.0]
[1725899068780,29.62689355,131.09,130.99,112.84894042]
[1725899069008,45.0,131.08,130.99,112.84894042]
[1725899070070,45.0,131.08,131.0,0.12549]
[1725899070270,16.3159,131.07,130.99,50.0]
[1725899070584,16.3159,131.07,131.01,50.0]
[1725899071359,45.0,131.06,131.01,0.12549]
[1725899071558,45.0,131.06,131.0,46.91574042]
[1725899071777,6.5362,131.05,130.97,7.95189967]
[1725899071976,65.0,131.04,130.97,7.95189967]
[1725899072184,10.21678179,131.03,130.97,7.95189967]
[1725899072384,80.479,131.02,130.93,96.91574042]
[1725899072593,80.479,131.02,130.94,7.95697421]
[1725899073057,60.479,131.02,130.94,7.95697421]
[1725899073997,20.0,131.01,130.94,7.95697421]
[1725899074369,45.0,131.0,130.94,7.95697421]
[1725899074570,45.0,131.0,130.91,56.535]
[1725899074768,45.0,131.0,130.91,50.0]
[1725899074967,45.0,131.0,130.91,57.95834951]
[1725899075173,45.0,131.0,130.91,7.95834951]
[1725899075384,45.0,131.01,130.91,57.95834951]
[1725899076403,45.0,131.01,130.92,0.12549]
[1725899076895,6.4847,131.0,130.92,0.12549]
[1725899077079,45.0,130.99,130.92,0.12549]
[1725899077588,45.0,130.99,130.91,7.95834951]
[1725899078489,45.0,130.99,130.89,50.0]
[1725899078888,45.0,130.99,130.9,0.12549]
[1725899079794,15.5853,130.97,130.9,0.12549]
[1725899080778,15.5853,130.97,130.89,57.95955347]
[1725899081875,45.0,130.96,130.89,57.95955347]
[1725899082081,45.0,130.96,130.9,0.12549]
[1725899082676,45.0,130.96,130.9,0.84255156]
[1725899082866,45.0,130.96,130.9,0.12549]
[1725899083471,45.0,130.96,130.9,0.84233244]
[1725899083671,15.5853,130.97,130.9,0.84233244]
[1725899084094,15.5853,130.97,130.9,0.12549]